Cogmind - Beta 16 @@@ ROGUE MODE // 2025.11.02 @ 18:14:35 Player: Rocko1345 Result: Destroyed by Autobeam Turret with Autobeam Performance ------------- Evolutions (0) 0 Regions Visited (2) 400 Robots Destroyed (11) 55 Value Destroyed (374) 374 Prototype IDs (0) 0 Alien Tech Used (0) 0 Bonus (0) 0 TOTAL SCORE: 829 Bonus ------- None Cogmind --------- Core Integrity 0/250 Matter 20/300 Energy 250/250 System Corruption 0% Temperature Cool (18) Movement Treading (160) Location -10/Subcaves Parts ------- > --- POWER (1) -------- Ion Engine > --- PROPULSION (2) --- Light Treads Light Treads > --- UTILITY (2) ------ Cooling System Small Storage Unit > --- WEAPON (2) ------- Barrage Gun Battle Cannon > --- INVENTORY (8) ---- Disposable Heat Sink Machine Analyzer Makeshift Light Armor Plating Heavy Riot Gun Battle Rifle Barrage Gun Peak State ------------ > --- POWER ------------ Ion Engine > --- PROPULSION ------- Aluminum Leg Subdweller Monowheel > --- UTILITY ---------- Small Storage Unit Subdweller Optics > --- WEAPON ----------- Barrage Gun Battle Cannon > --- INVENTORY -------- Light Treads Light Treads Cooling System Disposable Heat Sink Machine Analyzer Hardened Light Armor Plating Heavy Riot Gun Battle Rifle [Rating: 13] Favorites ----------- Power Light Ion Engine Engine Light Ion Engine Propulsion Aluminum Leg Treads Light Treads Leg Aluminum Leg Wheel Subdweller Monowheel Utility Small Storage Unit Device Seismic Detector Storage Small Storage Unit Weapon Shotgun Ballistic Gun Shotgun Ballistic Cannon Battle Cannon Build | -11 -10 -10 ------- Run | Yrd Mat Sub Slots Evolved . | . . . Power . | . . . Propulsion . | . . . Utility . | . . . Weapon . | . . . Parts Attached 22 | 8 2 12 Power 2 | 1 . 1 Engine 2 | 1 . 1 Core . | . . . Reactor . | . . . Propulsion 5 | 2 . 3 Treads 2 | . . 2 Leg 2 | 2 . . Wheel 1 | . . 1 Hover . | . . . Flight . | . . . Utility 5 | 3 . 2 Device 4 | 2 . 2 Storage 1 | 1 . . Processor . | . . . Hackware . | . . . Protection . | . . . Artifact . | . . . Weapon 10 | 2 2 6 Energy Gun . | . . . Energy Cannon . | . . . Ballistic Gun 9 | 2 2 5 Ballistic Cannon 1 | . . 1 Launcher . | . . . Special Weapon . | . . . Impact Weapon . | . . . Slashing Weapon . | . . . Piercing Weapon . | . . . Special Melee Weapon . | . . . Unidentified Prototypes . | . . . Parts Lost 3 | . . 3 Power 1 | . . 1 Propulsion 1 | . . 1 Utility 1 | . . 1 Weapon . | . . . Highest Loss Streak 2 | . . 2 To Critical Strikes . | . . . Average Backups 6 | 1 7 7 Power . | . 1 . Propulsion 1 | 1 2 1 Utility 2 | . 2 3 Weapon 1 | . 1 2 Tool/Special . | . . . Unused Backups 7 | . . 7 Power . | . . . Propulsion . | . . . Utility 5 | . . 5 Weapon 2 | . . 2 Tool/Special . | . . . Average Slot Usage (%) 99 | . 100 99 Engine 14 | . 14 14 Treads 8 | . . 9 Leg 17 | . 28 17 Wheel 1 | . . 1 Device 13 | . 14 13 Storage 14 | . 14 14 Ballistic Gun 22 | . 28 22 Ballistic Cannon 5 | . . 5 Peak Build Rating 13 | 7 10 13 Average Rating 10 | 5 9 10 On Entrance 5 | . 7 10 Avg Prop Armor Cover (%) 8 | . . 8 Naked Turns . | . . . Heaviest Build 18 | 11 15 18 Greatest Support 40 | 20 20 40 Greatest Overweight (x) 1 | . . 1 Average Overweight (x) . | . . . Largest Inventory Capacity 8 | 8 8 8 Average Capacity 7 | 7 8 8 Most Carried 8 | 3 8 8 Average Carried 6 | 1 7 7 Final Capacity 8 | 8 8 8 Final Carried 8 | 3 8 6 Class Distribution -------------------- 100% | Mutant Dominant Class ---------------- Mutant | -10/Materials Mutant | -10/Subcaves Resources | -11 -10 -10 ----------- Run | Yrd Mat Sub Matter Collected 561 | 290 . 271 Remotely 20 | 20 . . Salvage Created 429 | 110 . 319 Parts 23 | 7 . 16 Haulers Intercepted . | . . . Recyclers Shooed 1 | 1 . . Parts Field Recycled . | . . . Retrieved Matter . | . . . Parts Self-Destructed 15 | . . 15 Prevented . | . . . Parts Restored . | . . . Kills | -11 -10 -10 ------- Run | Yrd Mat Sub Combat Hostiles Destroyed 9 | . . 9 Guns 8 | . . 8 Cannons 1 | . . 1 Classes Destroyed 4 | 2 . 2 Tunneler 1 | 1 . . Recycler 1 | 1 . . Grunt 2 | . . 2 Subdweller 7 | . . 7 Best Kill Streak 2 | 2 . 2 Combat Bots Only 2 | . . 2 Max Kills in Single Turn 1 | 1 . 1 Gunslinging . | . . . Exploded . | . . . Melee . | . . . Uniques/NPCs Destroyed . | . . . Combat | -11 -10 -10 -------- Run | Yrd Mat Sub Hostile Shots Fired 93 | . . 93 Missed 25 | . . 25 Hits 68 | . . 68 Projectile 68 | . . 68 Critical Strikes 3 | . . 3 Damage Taken 1256 | . . 1256 Core 254 | . . 254 Absorbed by Shields . | . . . Core Remaining (%) 100 | 100 . . Volleys Fired 66 | 5 2 59 Largest 2 | 2 2 2 Hottest 61 | 40 46 61 Shots Fired 117 | 10 4 103 Gun 87 | 10 4 73 Cannon 30 | . . 30 Launcher . | . . . Special . | . . . Kinetic 117 | 10 4 103 Thermal . | . . . Explosive . | . . . Electromagnetic . | . . . Robot Hit Streak 9 | 4 1 9 Robot Miss Streak 5 | 1 5 4 Penetration Max . | . . . Secondary Targets . | . . . Shots Hit Robots 73 | 7 1 65 Core Hits 29 | 5 1 23 Critical Kills . | . . . Critical Parts Destroyed 1 | . . 1 Critical Strikes 1 | . . 1 Destroy 1 | . . 1 Melee Attacks . | . . . Impact . | . . . Slashing . | . . . Piercing . | . . . Sneak Attacks . | . . . Combat Hostiles . | . . . Follow-up Attacks . | . . . Damage Inflicted 1136 | 50 11 1075 Guns 886 | 50 11 825 Cannons 250 | . . 250 Explosions . | . . . Melee . | . . . Ramming . | . . . Kinetic 1136 | 50 11 1075 Thermal . | . . . Explosive . | . . . Electromagnetic . | . . . Impact . | . . . Slashing . | . . . Piercing . | . . . Highest Corruption . | . . . Average Corruption . | . . . Corruption Purged . | . . . Corruption Blocked . | . . . Overload Shots . | . . . Overflow Damage . | . . . Projectiles . | . . . Explosions . | . . . Melee . | . . . Knockbacks 5 | . . 5 Impact . | . . . Kinetic 5 | . . 5 Secondary . | . . . Self-Inflicted Damage . | . . . Shots . | . . . Rammed . | . . . Targets Rammed . | . . . Kicked . | . . . Crushed . | . . . Highest Temperature 4 | . . 4 Average Temperature 4 | . . 4 Received Heat Transfer 315 | . . 315 Siege Activations . | . . . Martial Activations . | . . . Shielding Activations . | . . . Robots Disrupted . | . . . Combat Hostiles . | . . . Robots Corrupted . | . . . Combat Hostiles . | . . . Parts Fried . | . . . Impact Corruptions . | . . . Robots Melted . | . . . Combat Hostiles . | . . . Parts Melted . | . . . Heat Transferred . | . . . Parts Sabotaged . | . . . Parts Stolen . | . . . Parts Stripped . | . . . Power Chain Reactions . | . . . Alert | -11 -10 -10 ------- Run | Yrd Mat Sub Maximum Alert Level . | . . . Low Security (%) 100 | 100 100 . Level 1 . | . . . Level 2 . | . . . Level 3 . | . . . Level 4 . | . . . Level 5 . | . . . High Security . | . . . Max Security . | . . . Peak Influence 5 | 5 . . Initial . | . . . Average . | . . . Influence Increases 60 | 10 . 50 Destroy 0b10 Robot/C 40 | . . 40 Destroy 0b10 Robot/NC 10 | 10 . . Destroy Leader 10 | . . 10 Influence Decreases 60 | 10 . 50 Time Decay 60 | 10 . 50 Squads Dispatched . | . . . Investigation . | . . . Extermination . | . . . Reinforcement . | . . . Assault . | . . . Garrison . | . . . Intercept . | . . . Searches Triggered . | . . . Construction Impeded . | . . . Haulers Reinforced . | . . . Active Scanning Responses . | . . . Cargo Convoy Interrupts . | . . . Stealth | -11 -10 -10 --------- Run | Yrd Mat Sub Distress Signals . | . . . Communications Jammed . | . . . Distress Signals . | . . . Times Spotted 14 | . 1 13 Peak Tracking Total 2 | . 1 2 Tactical Retreats . | . . . Traps | -11 -10 -10 ------- Run | Yrd Mat Sub Traps Triggered . | . . . Indirectly . | . . . Trap Hack Attempts . | . . . Triggered . | . . . Disarmed . | . . . Reprogrammed . | . . . Reused . | . . . Traps Extracted . | . . . Installed . | . . . Triggered . | . . . Machines | -11 -10 -10 ---------- Run | Yrd Mat Sub Machines Disabled . | . . . Max in Single Turn . | . . . Machines Repaired . | . . . Machines Dismantled . | . . . Machines Sabotaged . | . . . Overloaded Fab Kills . | . . . Hacking | -11 -10 -10 --------- Run | Yrd Mat Sub Machines Accessed 1 | . . 1 Terminals . | . . . Fabricators . | . . . Repair Stations . | . . . Recycling Units . | . . . Scanalyzers . | . . . Garrison Access . | . . . Total Hacks 4 | . . 4 Successful 4 | . . 4 Failed . | . . . Catastrophic . | . . . Database Lockouts . | . . . Manual . | . . . Terminals . | . . . Fabricators . | . . . Repair Stations . | . . . Recycling Units . | . . . Scanalyzers . | . . . Garrison Access . | . . . Terminal Hacks 4 | . . 4 Record 4 | . . 4 Fabricator Hacks . | . . . Repair Station Hacks . | . . . Recycling Unit Hacks . | . . . Scanalyzer . | . . . Garrison Access Hacks . | . . . Unauthorized Hacks . | . . . Terminals . | . . . Fabricators . | . . . Repair Stations . | . . . Recycling Units . | . . . Scanalyzers . | . . . Garrison Access . | . . . Data Cores Recovered . | . . . Used . | . . . Hacking Detections . | . . . Full Trace Events . | . . . Feedback Events . | . . . Feedback Blocked . | . . . Robot Schematics Acquired . | . . . Robots Built . | . . . Authchips . | . . . Time . | . . . Total Robot Build Rating . | . . . Part Schematics Acquired . | . . . Parts Built . | . . . Authchips . | . . . Time . | . . . Total Part Build Rating . | . . . Part Studies Acquired . | . . . Parts Repaired . | . . . Time . | . . . Parts Recycled . | . . . Recycled Matter . | . . . Retrieved Matter . | . . . Retrieved Components . | . . . Parts Scanalyzed . | . . . Part Schematics Acquired . | . . . Parts Damaged . | . . . Bothacking | -11 -10 -10 ------------ Run | Yrd Mat Sub Used RIF Installer . | . . . Robots Hacked . | . . . Non-combat . | . . . Combat . | . . . Robot Hacks Applied . | . . . Relay Couplers Released . | . . . Fabnet Peak Effective % . | . . . Robots Rewired . | . . . Allies Hacked . | . . . Hacks Repelled . | . . . Allies | -11 -10 -10 -------- Run | Yrd Mat Sub Total Allies . | . . . Largest Group . | . . . Highest-Rated Group . | . . . Highest-Rated Ally . | . . . Total Orders . | . . . Ally Attacks . | . . . Total Damage . | . . . Kills . | . . . Allies Corrupted . | . . . Allies Melted . | . . . Intel | -11 -10 -10 ------- Run | Yrd Mat Sub Active Infowar (turns) 1615 | 11 155 1449 Optics 392 | . . 392 Seismic 1223 | 11 155 1057 Robot Analysis Total . | . . . Derelict Logs Recovered 2 | . . 2 Drone Launches . | . . . Drone Recoveries . | . . . Exploration | -11 -10 -10 ------------- Run | Yrd Mat Sub Turns Passed 2627 | 141 155 2331 Spaces Moved 1424 | 95 96 1233 Core 8 | 8 . . Treads 376 | . . 376 Legs 842 | 87 96 659 Wheels 198 | . . 198 Hover . | . . . Flight . | . . . Fastest Speed 50 | 50 120 110 Average Speed 128 | 114 120 130 Slowest Speed 190 | 120 120 190 Overloaded Moves . | . . . Propulsion Burnouts . | . . . Robots Hopped . | . . . Potential Cave-ins . | . . . Cave-ins Triggered . | . . . Exploration Rate (%) 21 | 4 11 48 Regions Visited 2 Branch Regions 1 Pre-discovered Areas 2 | . . 2 Known Exits Taken . | . . . Unknown Exits Taken 2 | 1 1 . Scrap Searched . | . . . Spaces Dug . | . . . Terrain Destroyed . | . . . Melee . | . . . Projectile . | . . . AOE . | . . . Terrain Rammed . | . . . Walls Destroyed . | . . . Machines Disabled . | . . . Actions | -11 -10 -10 --------- Run | Yrd Mat Sub Total 2103 | 116 134 1853 Wait 570 | 5 28 537 Move 1422 | 94 95 1233 Hop . | . . . Pick Up 12 | 3 5 4 Fast Attach 10 | 8 . 2 Attach 4 | . . 4 Detach . | . . . Swap 8 | . 2 6 Drop 11 | 1 2 8 Fire 66 | 5 2 59 Melee . | . . . Ram . | . . . Kick . | . . . Crush . | . . . Escape Stasis . | . . . Rewire . | . . . Trap . | . . . Miscellaneous . | . . . Route ------- -11/Scrapyard -10/Materials -10/Subcaves (discovered 3 exits: [*Mat x2] / *Rec) History --------- Turn | Location | Event 3 | -11/Scrapyard | Discovered new exit (range 16) 142 | -11/Scrapyard | Entered Materials 290 | -10/Materials | Discovered new exit (range 7) 297 | -10/Materials | Entered Subcaves 298 | -10/Subcaves | Approached by a straggling Scientist 311 | -10/Subcaves | Build established: Mutant 371 | -10/Subcaves | Curiously followed by a Cobbler waking with a query about "LVR3C" 461 | -10/Subcaves | Identified exit to Recycling 835 | -10/Subcaves | Shifting Twisted Machinery released Hvy. Riot Gun 1089 | -10/Subcaves | Visited Clippyterm 1093 | -10/Subcaves | Learned location of Section 7 (-2) 1093 | -10/Subcaves | Learned Factory stockpile data 1429 | -10/Subcaves | Learned location of Zion (-6) 1429 | -10/Subcaves | Met a Zionite searching for "candidates" 1460 | -10/Subcaves | Shifting Twisted Machinery released Battle Rifle 1461 | -10/Subcaves | Shifting Twisted Machinery released Riot Gun 1511 | -10/Subcaves | A swath of the cavern ceiling suddenly collapsed 1585 | -10/Subcaves | Core integrity fell below 50% 1698 | -10/Subcaves | Shifting Twisted Machinery released Mak. Light Armor Plating 1699 | -10/Subcaves | Shifting Twisted Machinery released Enh. Flamer 1877 | -10/Subcaves | Discovered new exit (range 8) 1987 | -10/Subcaves | Core integrity fell below 20% 2553 | -10/Subcaves | Discovered new exit (range 9) 2628 | -10/Subcaves | Destroyed by Autobeam Turret with Autobeam Last Messages --------------- 01859_ 70-ICA(R) destroyed. 01870_ Acquired 35 matter. 01872_ Acquired 4 matter. 01877_ EXIT=FOUND 01963_ Subatomizers dissect the Sub. Optics. 01965_ N7-1ZI(R) knocked back. 01975_ U5-UEQ(O) knocked back. 01978_ Subatomizers dissect the Sub. Optics. 01990_ N7-1ZI(R) destroyed. 01993_ Acquired 2 matter. 02000_ O3-K7S(R) knocked back. 02010_ Acquired 2 matter. 02015_ Acquired 12 matter. 02021_ Acquired 23 matter. 02025_ Acquired 5 matter. 02027_ O3-K7S(R) destroyed. 02036_ Acquired 3 matter. 02041_ Acquired 39 matter. 02362_ U5-UEQ(O) collects matter. 02553_ EXIT=FOUND Map ----- +----------------------------------------------------+ | ?????????????????????????????????????????????????? | | ?????????? #?????????????????????????????????????? | | ???????? ###??????????????????????????????????? | | # ?????? #??????????????????????????????????? | | ?????# #??????????????????????????????????? | | #???# #?????###???###????????????????????? | | ???? ##???? ##?# ##???????????????????? | | #???# ##??? ## ##"?????????????????? | | ????# ##?? "?????????????????? | | ?????# #??# ? "?????????????????? | | ???### #??# #? "" ??????????????? | | #### #### ## " ??????????????? | | ## ??????????????? | | # ## "?????????????? | | ???# #???# ""????????????? | | ????# #?????# ?????????????? | | #???# ##????## ?????????????? | | ##?## ## ### O ###??## ?######??????? | | ### ### ####] #??# #?#" ""##?????? | | #### #?#####?# #??# #?" ""#?????? | | < # # #???????## ##??# "### "#?????? | | #????????# #??# " ##"""""#?????? | | ##????????# ##?#""" #?????? | | ####?????????## #?#" #??????? | | ##?????????????## #?# [ ## ###??????? | | ##???????????????# @ #?## #### #????????? | | # ##????????????????##### #??####??# ##???????? | | ###?????????????????????# #????????# #???????? | | ????????????????????????# #????????# ##??????? | | ????????????????????????# #????????# #??????? | | ????????????????????????# #????????# ##??????? | | ????????????????????????# #????????# ##???????? | | ????????????????????????# #????????# #????????? | | #???????????????????????s s????????# #????????? | | ##??????????????????????% ????????# #????????? | | #?????????????????????? ????????## #????????? | | #?????????????????????? t t ????????# #????????? | | ##????????????????????? " " ????????# #????????? | | #?????????????????????"" """???????## #????????? | | ##?????????????????????#?>????????### ##???????? | | #????????###????????????#??????### ## #???????? | | #####????## ##?????????????####?# ##???????? | | ## ##??## ######??????### #?# # ##????????? | | # #?## ## ###????# ### ###?????????? | | # ### ####?# ## #??????????? | | [ ### ##??????????? | | ## # [ #??????????? | | ## ## # #??????????? | | ###### ###### #??????????? | | ######????### ## ###??# #??????????? | +----------------------------------------------------+ Best States ------------- Heat Dissipation 47 Energy Generation 10 Energy Capacity 250 Matter Stores 300 Matter Capacity 300 Sight Range 21 Terrain Scan Density 10 Evasion (%) 55 Recoil Reduction 2 Item Schematics ----------------- None Robot Schematics ------------------ None Fabricated ------------ Nothing Repaired ---------- Nothing Studied --------- None Alien Tech Used ----------------- None Achievements -------------- None Challenges ------------ None Game ------ Seed ForceBoreShell Manual? 0 Play Time 00:15:25 Cumulative 226.1 hours Start 2025.11.02 @ 18:01:26 End 2025.11.02 @ 18:14:35 Sessions 1 Manual Loads 0 Difficulty Rogue Special Mode None Game No. 275 Rogue 101 Adventurer 174 Explorer 0 Win Type - Total 1 Types 1/0/0/0/0/0/0/0/0/0 Lore% 61 Gallery% 59 Achievement% 41 Wizard Run 0 Options --------- Layout 0 ASCII 0 Keyboard 0 Movement Numpad Keybinds 0 Fullscreen 1 Font 18/Terminus Map View 76x50 Zoom Use 0% Tactical HUD 1 Map Filters NONE Filters NONE Steam 1 RUN: 054b54dd-b0fe-436a-8a64-4d4772595955